Cogmind - Beta 15 @@@ ROGUE MODE // 2025.05.09 @ 00:46:53 Player: Darcyisverycute Result: Destroyed by C-57 Dissector with Dual-blade Saw Performance ------------- Evolutions (9) 4500 Regions Visited (28) 5600 Robots Destroyed (133) 665 Value Destroyed (4957) 4957 Prototype IDs (97) 1940 Alien Tech Used (3) 600 Bonus (8511) 8511 TOTAL SCORE: 26773 Bonus ------- High Alert Combat Kills 445 Follower Combat Kills 1162 Registered with UFD 300 Met Optimus in HQ 500 Met Imprinter 300 Destroyed Z-Imprinter 1000 Met Warlord at Base 500 MAIN.C Attacked Warlord 500 Used Core Reset Matrix 3000 Met Optimus at Protoforge 1000 Friendly Fire -196 Cogmind --------- Core Integrity 0/1600 Matter 217/300 Energy 64/100 System Corruption 27% Temperature Cool (0) Movement Core (50) Location -1/Command Parts ------- > --- POWER (2) -------- (None) > --- PROPULSION (9) --- Advanced VSS Leg Advanced VSS Leg > --- UTILITY (12) ----- Graphene Brace > --- WEAPON (2) ------- (None) > --- INVENTORY (5) ---- Reinforced Quantum Reactor Field Propulsion Array Advanced Particle Charger Falx Peak State ------------ > --- POWER ------------ Neutrino Core Zionite Light DM Reactor > --- PROPULSION ------- Overtuned Medium Treads Overtuned Flexi-carbon Leg Experimental VSS Leg Experimental VSS Leg Experimental VSS Leg Experimental VSS Leg Combat Antigrav System Combat Linear Gravjet Experimental Surge Thruster > --- UTILITY ---------- Scrap Suit Experimental Heat Sink Large Storage Unit Experimental Optical Array Experimental Core Analyzer Advanced Reaction Control System Graphene Brace System Mapper A0-MCA's Component Scanner > --- WEAPON ----------- Concept XC Strikerail Concept XC Strikerail > --- INVENTORY -------- Light Quantum Reactor Nuclear Pulse Thruster Improved Diametric Drive Impulse Thruster Array Advanced Coolant Injector Zionite Biocell Advanced Terrain Scanner Advanced Terrain Scan Processor Makeshift Medium Armor Plating High-powered Transdimensional Reconstructor Vortex Driver Vortex Driver Enhanced Nova Cannon Precision Rocket Launcher [Rating: 196] Favorites ----------- Power Zionite Light DM Reactor Engine Light Ion Engine Power Core Neutrino Core Reactor Zionite Light DM Reactor Propulsion Light Treads Treads Light Treads Leg Flexi-carbon Leg Wheel Compact Wheel Hover Unit Zionite Glidesys I Flight Unit Improved Diametric Drive Utility Huge Storage Unit Device Scrap Suit Storage Huge Storage Unit Processor Advanced Signal Interpreter Hackware System Mapper Protection Makeshift Light Armor Plating Weapon Medium Laser Energy Gun Medium Laser Energy Cannon Heavy Plasma Cannon Ballistic Gun Concept XC Strikerail Ballistic Cannon Battle Cannon Launcher Mini Grenade Launcher Special Weapon Mining Laser Impact Weapon Great Maul Slashing Weapon Chainsword Piercing Weapon Lance Build | -11 -10 -10 -10 -9 -9 -6 -6 -6 -6 -6 -5 -5 -5 -5 -5 -5 -5 -4 -4 -4 -4 -3 -3 -2 -2 -2 -1 -1 ------- Run | Yrd Mat Min Sub Rec Scr Fac Low Low Zio Dee Pro Fac Was Fac Upp Upp War Pro Fac Was Fac Res Tes Res Qua Frg Acc Com Slots Evolved 18 | . . . . . . 8 . . . . . 2 . . . . . . 2 . . 2 . 2 . . 2 . Power 1 | . . . . . . 1 . . . . . . . . . . . . . . . . . . . . . . Propulsion 7 | . . . . . . 3 . . . . . 1 . . . . . . 2 . . . . 1 . . . . Utility 10 | . . . . . . 4 . . . . . 1 . . . . . . . . . 2 . 1 . . 2 . Weapon . | . . . . . . . . . . . . . . . . . . . . . . . . . . . . . Parts Attached 211 | 6 3 3 10 3 7 28 5 10 3 33 1 2 . 2 1 1 8 4 3 . 10 2 4 12 4 25 4 17 Power 20 | 1 . . 1 1 . 4 2 2 . 3 . . . . . . . 1 . . . . . 1 . 3 . 1 Engine 8 | 1 . . 1 1 . 1 1 2 . . . . . . . . . . . . . . . . . 1 . . Core 6 | . . . . . . 3 1 . . 1 . . . . . . . . . . . . . . . 1 . . Reactor 6 | . . . . . . . . . . 2 . . . . . . . 1 . . . . . 1 . 1 . 1 Propulsion 79 | 2 . . 3 2 2 10 1 5 1 8 . 1 . . . . 3 1 2 . 8 1 1 2 1 14 2 9 Treads 16 | 2 . . . 2 . 3 . 3 . . . . . . . . . . . . . . . . . 1 . 5 Leg 16 | . . . . . . 1 1 2 1 . . . . . . . . . . . . . . . . 7 2 2 Wheel 11 | . . . 3 . 2 5 . . . . . . . . . . . . . . . . . . . . . 1 Hover 21 | . . . . . . 1 . . . 8 . 1 . . . . 2 1 2 . 1 . . . . 5 . . Flight 15 | . . . . . . . . . . . . . . . . . 1 . . . 7 1 1 2 1 1 . 1 Utility 66 | 1 1 1 2 . 4 7 2 1 . 15 . 1 . 2 . . 2 . 1 . 2 1 2 7 3 5 2 4 Device 37 | . . . 1 . 1 4 1 1 . 9 . 1 . 1 . . 1 . . . 2 1 1 4 2 2 2 3 Storage 7 | 1 1 . . . 3 . . . . 1 . . . 1 . . . . . . . . . . . . . . Processor 9 | . . 1 . . . 1 1 . . . . . . . . . . . . . . . 1 1 1 2 . 1 Hackware 3 | . . . . . . . . . . . . . . . . . 1 . 1 . . . . 1 . . . . Protection 10 | . . . 1 . . 2 . . . 5 . . . . . . . . . . . . . 1 . 1 . . Artifact . | . . . . . . . . . . . . . . . . . . . . . . . . . . . . . Weapon 46 | 2 2 2 4 . 1 7 . 2 2 7 1 . . . 1 1 3 2 . . . . 1 2 . 3 . 3 Energy Gun 13 | 2 1 . 2 . . 3 . . . 2 . . . . . . 1 . . . . . 1 1 . . . . Energy Cannon 4 | . . . . . . . . . . 1 . . . . . . 1 1 . . . . . 1 . . . . Ballistic Gun 8 | . . . . . . 1 . . 1 1 . . . . . . . . . . . . . . . 3 . 2 Ballistic Cannon 5 | . . 1 2 . 1 1 . . . . . . . . . . . . . . . . . . . . . . Launcher 6 | . . 1 . . . 1 . 1 . 2 . . . . . . . 1 . . . . . . . . . . Special Weapon 4 | . 1 . . . . . . 1 . 1 . . . . . . 1 . . . . . . . . . . . Impact Weapon . | . . . . . . . . . . . . . . . . . . . . . . . . . . . . . Slashing Weapon 4 | . . . . . . 1 . . . . 1 . . . 1 . . . . . . . . . . . . 1 Piercing Weapon 2 | . . . . . . . . . 1 . . . . . . 1 . . . . . . . . . . . . Special Melee Weapon . | . . . . . . . . . . . . . . . . . . . . . . . . . . . . . Unidentified Prototypes 26 | . . . . . . 1 . . . 12 . . . . . . 6 1 . . . . 3 2 1 . . . Corrupted Parts 1 | . . . . . . . . . . . . . . . . . . . . . . . . . . . . 1 System Corruption 6 | . . . . . . . . . . . . . . . . . . . . . . . . . . . . 6 Parts Lost 94 | . . . 6 2 . 13 . 3 . 17 1 . . . . . . . . . 3 . 1 6 1 19 7 15 Power 12 | . . . 2 . . 3 . 1 . 3 . . . . . . . . . . . . . . . 3 . . Propulsion 43 | . . . 2 1 . 7 . 1 . 7 . . . . . . . . . . 3 . 1 1 1 9 3 7 Utility 24 | . . . . . . 1 . 1 . 3 1 . . . . . . . . . . . . 4 . 6 4 4 Weapon 15 | . . . 2 1 . 2 . . . 4 . . . . . . . . . . . . . 1 . 1 . 4 Highest Loss Streak 11 | . . . 4 2 . 3 . 1 . 11 1 . . . . . . . . . 2 . 1 2 3 11 5 6 To Critical Strikes 1 | . . . . . . . . . . . . . . . . . . . . . . . . . . 1 . . Average Backups 18 | 3 9 13 16 22 17 21 21 19 23 21 14 13 15 17 20 19 20 19 20 20 18 14 14 14 14 12 3 3 Power 1 | . 2 2 2 3 . . . . . 1 2 2 2 2 2 2 2 1 1 1 1 1 1 1 1 . . . Propulsion 1 | 1 2 2 2 1 . . . . . . 1 . 4 6 8 7 8 8 8 8 7 2 1 2 4 3 . . Utility 8 | . 2 5 4 6 5 10 12 11 13 12 8 8 7 7 9 9 8 8 9 9 8 8 8 7 4 4 2 2 Weapon 6 | 1 3 4 6 11 8 8 6 6 8 6 2 2 . . . . 1 2 2 2 2 3 3 3 3 3 1 . Tool/Special . | . . . . . . . . . . . . . . . . . . . . . . . . . . . . . Unused Backups 71 | 1 . . . . 22 6 . 3 10 8 1 5 1 2 . 4 3 2 . . . . . 1 2 . . . Power 6 | . . . . . 4 . . . 1 . . . . . . . . . . . . . . . 1 . . . Propulsion 11 | 1 . . . . 2 1 . . . . . 2 . 1 . 2 2 . . . . . . . . . . . Utility 37 | . . . . . 7 3 . 3 8 7 . 2 1 1 . 2 1 . . . . . . 1 1 . . . Weapon 16 | . . . . . 8 2 . . 1 1 1 1 . . . . . 2 . . . . . . . . . . Tool/Special 1 | . . . . . 1 . . . . . . . . . . . . . . . . . . . . . . . Average Slot Usage (%) 90 | . 93 100 96 99 93 83 72 87 92 85 100 98 100 100 100 100 99 100 89 100 96 88 89 89 85 81 33 26 Engine 8 | . 14 14 13 13 14 1 1 8 13 6 . . . . . . . . . . . . . . . . . . Reactor 2 | . . . . . . . . . . 3 13 11 11 11 11 11 11 11 10 10 10 9 9 8 8 4 . . Treads 11 | . 28 28 19 24 16 6 6 9 20 4 . . . . . . . . . . . . . . . 1 . 4 Leg 3 | . . . . . . . 3 12 11 7 . . . . . . . . . . . . . . . 13 10 1 Wheel 4 | . . . 4 3 11 21 13 6 . . . . . . . . . . . . . . . . . . . 1 Hover 6 | . . . . . . . . . . 15 33 35 35 35 35 35 34 35 31 42 32 1 . . . 3 . . Flight 1 | . . . . . . . . . . . . . . . . . . . . . 7 33 32 29 29 11 3 . Device 9 | . . . 4 . . 16 13 13 12 9 19 21 23 23 23 23 18 17 13 10 10 16 14 16 9 13 6 4 Storage 9 | . 21 28 14 14 13 6 6 5 6 8 6 5 5 5 5 5 5 5 5 5 5 8 8 4 4 3 . . Processor 7 | . . . 3 . . 5 11 13 13 13 13 11 11 11 11 11 11 11 10 10 9 4 8 8 12 13 9 10 Protection 3 | . . . 6 14 8 3 1 . . 1 . . . . . . . . . . . . . . 3 2 . . Energy Gun 7 | . 27 15 8 13 13 6 1 6 10 3 6 5 5 5 5 5 1 . . . . . . . . . . . Ballistic Cannon 5 | . . 9 16 14 14 1 1 1 . 1 . . . . . . . . . . . . . . . . . . Peak Build Rating 196 | 6 8 8 17 16 18 65 62 66 72 100 99 113 114 114 111 112 125 125 133 133 135 136 151 172 166 196 103 80 Average Rating 58 | 4 6 8 10 14 13 52 54 61 70 75 97 111 113 110 111 111 119 121 124 133 130 134 142 164 159 165 81 58 On Entrance 82 | . 6 8 8 14 15 18 43 62 65 69 99 93 113 114 111 111 112 122 122 133 133 118 136 146 147 166 75 40 Naked Turns . | . . . . . . . . . . . . . . . . . . . . . . . . . . . . . Heaviest Build 208 | 14 94 95 95 93 208 111 121 121 113 128 52 53 53 72 72 72 84 84 76 75 83 49 49 66 62 72 6 40 Greatest Support 156 | 40 40 40 40 40 40 50 20 98 98 70 70 84 84 84 84 84 84 94 93 82 82 57 57 66 66 156 7 98 Greatest Overweight (x) 12 | . 2 2 9 5 6 4 6 12 1 8 . . . . . . 1 1 . . 1 . . . 1 1 . 1 Average Overweight (x) 1 | . . 2 2 2 1 2 5 7 1 1 . . . . . . . . . . . . . . . . . . Largest Inventory Capacity 35 | 8 25 25 25 25 35 25 25 25 25 25 15 15 15 20 20 20 20 20 20 20 20 15 15 15 15 15 5 5 Average Capacity 21 | 6 17 25 25 25 22 25 25 21 25 23 15 15 15 18 20 20 20 20 20 20 19 15 15 15 15 14 5 5 Most Carried 25 | 6 13 13 25 25 25 25 25 25 25 25 15 15 15 20 20 20 20 20 20 20 20 15 15 15 15 15 4 5 Average Carried 19 | 3 9 13 16 24 18 24 23 20 24 22 14 14 15 17 20 19 19 19 20 20 19 14 14 14 14 13 3 4 Final Capacity 25 | 8 25 25 25 25 25 25 25 25 25 15 15 15 15 20 20 20 20 20 20 20 15 15 15 15 15 5 5 5 Final Carried 25 | 6 13 13 24 25 25 23 25 25 25 15 15 15 15 20 20 20 20 20 20 20 15 15 14 15 15 4 4 5 Class Distribution -------------------- 40% | Mutant 28% | Scavenger-Mutant 7% | Scavenger-Scout 5% | Hacker-Scout 3% | Scavenger-Skirmisher 3% | Scrapper Dominant Class ---------------- Mutant | -10/Materials Mutant | -10/Mines Mutant | -10/Subcaves Mutant | -9/Recycling Mutant | -9/Scraptown Scrapper | -6/Factory Scavenger-Assassin | -6/Lower Caves Scavenger-Mutant | -6/Lower Caves Scavenger-Mutant | -6/Zion Scavenger-Mutant | -6/Deep Caves Scavenger-Scout | -5/Proximity Caves Scavenger-Scout | -5/Factory Scavenger-Scout | -5/Waste Scavenger-Scout | -5/Factory Scavenger-Scout | -5/Upper Caves Scavenger-Scout | -5/Upper Caves Commander-Scout | -5/Warlord Hacker-Scout | -4/Proximity Caves Hacker-Scout | -4/Factory Hacker-Scout | -4/Waste Hacker-Scout | -4/Factory Hacker-Scout | -3/Research Hacker-Scout | -3/Testing Hacker-Scout | -2/Research Hacker-Sprinter | -2/Quarantine Scavenger-Mutant | -2/Protoforge Hacker-Mutant | -1/Access Mutant | -1/Command Resources | -11 -10 -10 -10 -9 -9 -6 -6 -6 -6 -6 -5 -5 -5 -5 -5 -5 -5 -4 -4 -4 -4 -3 -3 -2 -2 -2 -1 -1 ----------- Run | Yrd Mat Min Sub Rec Scr Fac Low Low Zio Dee Pro Fac Was Fac Upp Upp War Pro Fac Was Fac Res Tes Res Qua Frg Acc Com Matter Collected 5630 | 260 14 28 581 324 80 943 411 437 82 341 125 . 200 20 10 10 100 60 . . 160 40 70 125 354 539 4 312 Remotely . | . . . . . . . . . . . . . . . . . . . . . . . . . . . . . Salvage Created 6954 | 123 218 28 370 507 . 1994 266 316 . 350 31 . . 50 59 151 . 666 . . 342 40 35 280 363 752 . 13 Parts 320 | 7 8 2 22 23 . 81 12 20 . 33 3 . . 8 2 1 . 17 . . 12 9 3 11 16 30 . . Haulers Intercepted 1 | . . . . . . 1 . . . . . . . . . . . . . . . . . . . . . . Recyclers Shooed 12 | . . . . 4 . 7 . . . . . . . . . . . . . . 1 . . . . . . . Parts Field Recycled . | . . . . . . . . . . . . . . . . . . . . . . . . . . . . . Retrieved Matter . | . . . . . . . . . . . . . . . . . . . . . . . . . . . . . Parts Self-Destructed 62 | . . . 12 . . . . 16 3 . 3 . . . 5 10 . 13 . . . . . . . . . . Prevented . | . . . . . . . . . . . . . . . . . . . . . . . . . . . . . Kills | -11 -10 -10 -10 -9 -9 -6 -6 -6 -6 -6 -5 -5 -5 -5 -5 -5 -5 -4 -4 -4 -4 -3 -3 -2 -2 -2 -1 -1 ------- Run | Yrd Mat Min Sub Rec Scr Fac Low Low Zio Dee Pro Fac Was Fac Upp Upp War Pro Fac Was Fac Res Tes Res Qua Frg Acc Com Combat Hostiles Destroyed 78 | . 4 5 13 1 . 22 1 1 . 12 . . . . . 1 . . . . . . . 7 . 11 . . Guns 37 | . 4 2 1 . . 12 . 1 . 5 . . . . . 1 . . . . . . . . . 11 . . Cannons 20 | . . . 9 1 . 4 1 . . 4 . . . . . . . . . . . . . 1 . . . . AOE 21 | . . 3 3 . . 6 . . . 3 . . . . . . . . . . . . . 6 . . . . Classes Destroyed 25 | 2 2 1 3 2 . 4 2 2 . 2 1 . . . . . . . . . 1 . . 1 . 2 . . Worker 18 | . 1 . . . . 10 . . . . . . . . . . . . . . . . . 1 5 . . 1 Builder 14 | . . . . 1 . 9 . . . . . . . 1 . . . . . . . 2 . 1 . . . . Tunneler 3 | 2 . . . . . . . . . . . . . . . . . . . . 1 . . . . . . . Hauler 1 | . . . . . . 1 . . . . . . . . . . . . . . . . . . . . . . Recycler 16 | 1 . . . 6 . 6 . . . . . . . . . . . . . . 2 . . . 1 . . . Minesweeper 1 | . . . . . . . . . . . 1 . . . . . . . . . . . . . . . . . Mechanic 2 | . . . . . . 1 . . . . . . . . . . . . . . . . . . 1 . . . Operator 1 | . . . . . . . . . . . . . . 1 . . . . . . . . . . . . . . Watcher 5 | . . . . . . . . . . . . . . . . . . . . . 1 . 1 1 1 . . 1 Swarmer 8 | . . . 4 . . 3 . . . . . . . . . . . . . . . . . . . 1 . . Cutter 1 | . . . . . . . . . . . . . . . . . . . . . . . . 1 . . . . Grunt 17 | . 4 1 . . . 8 . . . . . . . . . . . . . . . . . 4 . . . . Sentry 6 | . . . . 1 . 3 . . . . . . . . . 1 . . . . . . . . . 1 . . Hunter 7 | . . . . . . 5 . . . . . . . . . . . . . . . . . . . 2 . . Programmer 6 | . . . . . . 3 . . . . . . . . . . . . . . . . . 2 . 1 . . Behemoth 1 | . . . . . . . . 1 . . . . . . . . . . . . . . . . . . . . Striker 5 | . . . . . . . . . . . . . . . . . . . . . . . . . . 5 . . Alpha 7 1 | . . . . . . . . . . . . . . . . . . . . . . . . . . 1 . . Subdweller 9 | . . . 9 . . . . . . . . . . . . . . . . . . . . . . . . . Scientist 1 | . . . 1 . . . . . . . . . . . . . . . . . . . . . . . . . Z-Technician 5 | . . . . . . . . . . 5 . . . . . . . . . . . . . . . . . . Z-Light 8 | . . . . . . . . . . 8 . . . . . . . . . . . . . . . . . . Decomposer 1 | . . . . . . . . 1 . . . . . . . . . . . . . . . . . . . . Packrat 2 | . . . . . . . 1 1 . . . . . . . . . . . . . . . . . . . . Samaritan 4 | . . . . . . . 3 . . . . . . . 1 . . . . . . . . . . . . . Assembled 7 | . . 4 . . . . . . . 3 . . . . . . . . . . . . . . . . . . Savage 1 | . . . . . . . . 1 . . . . . . . . . . . . . . . . . . . . Mutant 1 | . . . . . . . 1 . . . . . . . . . . . . . . . . . . . . . Best Kill Streak 16 | 2 3 4 4 6 . 16 1 1 . 5 1 . . 1 . 1 . . . . 1 2 1 7 7 5 . 1 Combat Bots Only 8 | . 3 4 4 1 . 8 1 1 . 4 . . . . . 1 . . . . . . . 6 . 5 . . Max Kills in Single Turn 6 | 1 1 1 2 1 . 6 1 1 . 5 1 . . 1 1 1 . . . . 1 1 1 1 1 1 . 1 Gunslinging . | . . . . . . . . . . . . . . . . . . . . . . . . . . . . . Exploded 3 | . . 1 2 . . 3 . . . 1 . . . . . . . . . . . . . 1 . . . . Melee . | . . . . . . . . . . . . . . . . . . . . . . . . . . . . . Uniques/NPCs Destroyed 1 | . . . . . . . . . . 1 . . . . . . . . . . . . . . . . . . Z-Imprinter (-6/Deep Caves) Combat | -11 -10 -10 -10 -9 -9 -6 -6 -6 -6 -6 -5 -5 -5 -5 -5 -5 -5 -4 -4 -4 -4 -3 -3 -2 -2 -2 -1 -1 -------- Run | Yrd Mat Min Sub Rec Scr Fac Low Low Zio Dee Pro Fac Was Fac Upp Upp War Pro Fac Was Fac Res Tes Res Qua Frg Acc Com Hostile Shots Fired 1367 | . 18 17 95 4 . 213 15 41 . 132 5 . . 1 . . . 10 . . 8 2 26 86 13 215 128 338 Missed 508 | . 7 6 35 1 . 61 4 18 . 32 2 . . 1 . . . 6 . . 2 1 15 56 7 88 50 116 Hits 859 | . 11 11 60 3 . 152 11 23 . 100 3 . . . . . . 4 . . 6 1 11 30 6 127 78 222 Melee 7 | . . 1 . . . . . . . . . . . . . . . . . . 2 . . 1 . . . 3 Projectile 852 | . 11 10 60 3 . 152 11 23 . 100 3 . . . . . . 4 . . 4 1 11 29 6 127 78 219 AOE 6 | . . . . . . . . . . . . . . . . . . 3 . . . . . . . . . 3 Critical Strikes 23 | . . . . 1 . 3 . . . . . . . . . . . . . . . . 2 1 1 5 . 10 Actively Blocked 14 | . . . . . . . . . . . . . . . . . . . . . . . . . . 4 . 10 Part Disruptions 3 | . . . . . . . . . . . . . . . . . . . . . 1 . 1 . . . . 1 Damage Taken 19279 | 31 148 258 860 42 . 2451 156 284 . 2887 53 . . . . . . 123 . . 283 70 234 775 210 3639 1639 5136 Core 3310 | . 17 52 155 . . 386 33 14 . 357 17 . . . . . . . . . 77 . . 101 . 468 289 1344 Absorbed by Shields 15 | . . . . . . . . . . . . . . . . . . 15 . . . . . . . . . . Redirected to Shielding 140 | . . . . . . . . . . 140 . . . . . . . . . . . . . . . . . . Regen/Repaired (Parts) 717 | . . . . . . 18 5 16 596 . . . 5 . . . . . . . . . . . 46 31 . . Core Remaining (%) 64 | 100 . . . . 10 . . . . . 5 . . . . . . 100 . . 93 . 100 . . 46 . . Volleys Fired 498 | 3 23 15 59 13 . 133 8 23 . 65 . . . . . 3 . 3 . . 3 . . 18 49 60 3 17 Largest 2 | 2 2 2 2 2 . 2 2 2 . 2 . . . . . 1 . 1 . . 1 . . 1 1 2 1 1 Hottest 200 | 90 100 100 100 83 . 200 133 133 . 133 . . . . . 60 . 100 . . 100 . . 120 120 120 100 100 Shots Fired 761 | 6 45 17 97 26 . 239 14 31 . 95 . . . . . 3 . 3 . . 3 . . 18 48 98 3 15 Gun 459 | 6 44 3 19 13 . 195 8 23 . 61 . . . . . 3 . . . . . . . . . 76 . 8 Cannon 227 | . . 3 59 13 . 39 6 4 . 19 . . . . . . . 2 . . 3 . . 2 48 19 3 7 Launcher 58 | . . 4 15 . . 5 . 2 . 13 . . . . . . . . . . . . . 16 . 3 . . Special 17 | . 1 7 4 . . . . 2 . 2 . . . . . . . 1 . . . . . . . . . . Kinetic 323 | . . 3 59 13 . 128 6 4 . 26 . . . . . . . . . . . . . . . 76 . 8 Thermal 340 | 3 29 10 23 13 . 106 8 23 . 54 . . . . . 3 . 1 . . . . . 2 48 17 . . Explosive 58 | . . 4 15 . . 5 . 2 . 13 . . . . . . . . . . . . . 16 . 3 . . Electromagnetic 19 | 3 16 . . . . . . . . . . . . . . . . . . . . . . . . . . . Entropic 17 | . . . . . . . . . . . . . . . . . . 2 . . 3 . . . . 2 3 7 Robot Hit Streak 33 | 3 8 4 6 5 . 12 5 11 . 5 . . . . . 2 . . . . . . . 12 13 33 . 20 Robot Miss Streak 13 | 1 2 1 3 2 . 3 4 2 . 13 . . . . . 1 . 1 . . . . . . 1 3 . 1 Penetration Max 1 | . . . . . . . . . . . . . . . . . . . . . . . . . . 1 . . Secondary Targets 6 | . 1 . . . . 1 . . . 2 . . . . . . . . . . . . . . . 2 . . Max Gunslinging Chain 1 | . 1 . . . . 1 . . . 1 . . . . . . . . . . . . . . . 1 . . Shots Hit Robots 479 | 4 22 7 45 16 . 138 14 23 . 41 3 . . 2 1 7 . 32 . . 6 2 4 16 11 70 . 15 Core Hits 311 | 3 10 12 25 10 . 106 7 8 . 36 . . . 2 1 3 . 15 . . 2 . 1 21 9 37 . 3 Critical Kills 9 | . . . . . . 2 . . . . . . . . . . . . . . . . . . . 7 . . Critical Parts Destroyed 7 | . . . . . . 4 . . . . . . . . . . . . . . . . . . . 2 . 1 Critical Strikes 50 | . 1 1 1 1 . 18 . 6 . 1 . . . . . . . . . . 2 1 1 1 . 12 . 4 Burn 19 | . 1 1 . . . 11 . 6 . . . . . . . . . . . . . . . . . . . . Destroy 19 | . . . . . . 6 . . . . . . . . . . . . . . . . . . . 12 . 1 Blast 4 | . . . 1 1 . 1 . . . 1 . . . . . . . . . . . . . . . . . . Sever 1 | . . . . . . . . . . . . . . . . . . . . . . . . . . . . 1 Impale 5 | . . . . . . . . . . . . . . . . . . . . . 2 1 1 1 . . . . Sunder 2 | . . . . . . . . . . . . . . . . . . . . . . . . . . . . 2 Melee Attacks 171 | . . . . . . 1 9 . . . 5 1 . 10 1 7 . 47 . . 28 4 26 24 . . . 8 Impact . | . . . . . . . . . . . . . . . . . . . . . . . . . . . . . Slashing 35 | . . . . . . 1 9 . . . 5 1 . 10 1 . . . . . . . . . . . . 8 Piercing 136 | . . . . . . . . . . . . . . . . 7 . 47 . . 28 4 26 24 . . . . Sneak Attacks 23 | . . . . . . . 6 . . . 2 . . 1 1 1 . . . . 5 2 2 3 . . . . Combat Hostiles . | . . . . . . . . . . . . . . . . . . . . . . . . . . . . . Follow-up Attacks . | . . . . . . . . . . . . . . . . . . . . . . . . . . . . . Damage Inflicted 22091 | 88 268 308 1039 297 . 4772 800 612 . 4139 212 . . 144 98 447 . 2009 . . 495 168 306 2014 566 2526 . 783 Guns 7412 | 43 268 38 207 100 . 3094 111 516 . 652 . . . . . 60 . . . . . . . . . 2144 . 179 Cannons 2828 | . . 17 642 197 . 508 81 43 . 458 . . . . . . . . . . . . . 44 458 43 . 337 Explosions 6714 | 45 . 253 190 . . 1170 . 53 . 3007 . . . . . . . . . . . . . 1575 82 339 . . Melee 5009 | . . . . . . . 608 . . . 212 . . 144 98 387 . 2009 . . 495 168 306 395 . . . 187 Ramming 128 | . . . . . . . . . . 22 . . . . . . . . . . . . . . 26 . . 80 Kinetic 5419 | . . 17 642 197 . 1825 81 43 . 291 . . . . . . . . . . . . . . . 2144 . 179 Thermal 6588 | 58 147 38 207 100 . 1777 111 516 . 3029 . . . . . 60 . . . . . . . 44 458 43 . . Explosive 4454 | . . 253 190 . . 1165 . 53 . 797 . . . . . . . . . . . . . 1575 82 339 . . Electromagnetic 156 | 30 121 . . . . 5 . . . . . . . . . . . . . . . . . . . . . . Impact . | . . . . . . . . . . . . . . . . . . . . . . . . . . . . . Slashing 1249 | . . . . . . . 608 . . . 212 . . 144 98 . . . . . . . . . . . . 187 Piercing 3760 | . . . . . . . . . . . . . . . . 387 . 2009 . . 495 168 306 395 . . . . Entropic 337 | . . . . . . . . . . . . . . . . . . . . . . . . . . . . 337 Highest Corruption 27 | . . . . . . 3 3 3 3 . . . . . . . . . . . 3 . 4 2 4 10 6 27 Average Corruption 3 | . . . . . . 2 3 3 3 . . . . . . . . . . . 2 . 2 1 3 5 3 8 Corruption Purged . | . . . . . . . . . . . . . . . . . . . . . . . . . . . . . Corruption Blocked . | . . . . . . . . . . . . . . . . . . . . . . . . . . . . . Effects 111 | . . . . . . 16 8 30 4 . . . . . . . . . . . 2 . . 1 9 20 2 19 Message Errors 21 | . . . . . . 4 2 4 . . . . . . . . . . . . 1 . . . 4 2 1 3 Matter Fused 35 | . . . . . . 3 3 11 2 . . . . . . . . . . . . . . . 2 7 1 6 Heat Flow Errors 11 | . . . . . . 2 1 5 . . . . . . . . . . . . . . . . . 2 . 1 Energy Discharges 9 | . . . . . . 1 . 5 . . . . . . . . . . . . . . . . . 3 . . Parts Rejected 3 | . . . . . . 1 . . . . . . . . . . . . . . 1 . . . . . . 1 Data Loss (minor) 11 | . . . . . . 1 2 2 . . . . . . . . . . . . . . . 1 1 3 . 1 Data Loss (major) 2 | . . . . . . . . 1 . . . . . . . . . . . . . . . . 1 . . . Misfires 2 | . . . . . . . . 1 . . . . . . . . . . . . . . . . . . . 1 Alerts 4 | . . . . . . 1 . 1 2 . . . . . . . . . . . . . . . . . . . Misdirections 6 | . . . . . . . . . . . . . . . . . . . . . . . . . . 3 . 3 Weapon Failures 7 | . . . . . . 3 . . . . . . . . . . . . . . . . . . 1 . . 3 Overload Shots . | . . . . . . . . . . . . . . . . . . . . . . . . . . . . . Overflow Damage 2120 | . . . 11 10 . 20 161 11 . 597 107 . . . . 120 . 145 . . 218 190 79 358 21 . . 72 Projectiles 126 | . . . . 10 . 8 . 11 . 4 . . . . . . . . . . . . . . 21 . . 72 Explosions 675 | . . . 11 . . 12 . . . 593 . . . . . . . . . . . . . 59 . . . . Melee 1319 | . . . . . . . 161 . . . 107 . . . . 120 . 145 . . 218 190 79 299 . . . . Knockbacks 19 | . . 1 6 2 . 9 . . . . . . . . . . . . . . . . . . . . . 1 Impact 1 | . . . . . . . . . . . . . . . . . . . . . . . . . . . . 1 Kinetic 17 | . . 1 6 2 . 8 . . . . . . . . . . . . . . . . . . . . . . Secondary 1 | . . . . . . 1 . . . . . . . . . . . . . . . . . . . . . . Self-Inflicted Damage 376 | 31 . 121 53 . . . . . . 22 . . . . . . . . . . 66 . . 20 13 . . 50 Shots 10 | 1 . 4 3 . . . . . . . . . . . . . . . . . 1 . . 1 . . . . Rammed 17 | . . . . . . . . . . . . . . . . . . . . . . . . . 1 . . 16 Targets Rammed 17 | . . . . . . . . . . . . . . . . . . . . . . . . . 1 . . 16 Kicked . | . . . . . . . . . . . . . . . . . . . . . . . . . . . . . Crushed . | . . . . . . . . . . . . . . . . . . . . . . . . . . . . . Highest Temperature 470 | 72 238 40 2 252 . 470 141 312 . 449 . . . . . 24 3 252 13 . 343 215 178 271 126 133 . 242 Average Temperature 75 | 35 80 13 2 84 . 151 65 92 . 168 . . . . . 14 3 59 6 . 148 103 63 98 38 40 . 138 Received Heat Transfer 2208 | . 84 58 207 36 . 600 . 6 . 819 . . . . . . . . . . 20 . . 54 9 207 . 108 Effects 10 | . . . . . . . . . . 6 . . . . . . . . . . 3 . . 1 . . . . Shutdowns 1 | . . . . . . . . . . 1 . . . . . . . . . . . . . . . . . . Energy Bleed 1 | . . . . . . . . . . . . . . . . . . . . . . . . 1 . . . . Interference 5 | . . . . . . . . . . 4 . . . . . . . . . . 1 . . . . . . . Matter Decay 1 | . . . . . . . . . . 1 . . . . . . . . . . . . . . . . . . Short Circuit 2 | . . . . . . . . . . . . . . . . . . . . . 2 . . . . . . . Siege Activations 1 | . . . . . . . . . . . . . . . . . . . . . . . . . . . . 1 Total Turns 1 | . . . . . . . . . . . . . . . . . . . . . . . . . . . . 1 Longest Duration 1 | . . . . . . . . . . . . . . . . . . . . . . . . . . . . 1 Martial Activations . | . . . . . . . . . . . . . . . . . . . . . . . . . . . . . Shielding Activations . | . . . . . . . . . . . . . . . . . . . . . . . . . . . . . Robots Disrupted . | . . . . . . . . . . . . . . . . . . . . . . . . . . . . . Combat Hostiles . | . . . . . . . . . . . . . . . . . . . . . . . . . . . . . Robots Corrupted . | . . . . . . . . . . . . . . . . . . . . . . . . . . . . . Combat Hostiles . | . . . . . . . . . . . . . . . . . . . . . . . . . . . . . Parts Fried . | . . . . . . . . . . . . . . . . . . . . . . . . . . . . . Impact Corruptions . | . . . . . . . . . . . . . . . . . . . . . . . . . . . . . Robots Melted . | . . . . . . . . . . . . . . . . . . . . . . . . . . . . . Combat Hostiles . | . . . . . . . . . . . . . . . . . . . . . . . . . . . . . Parts Melted 18 | . 1 . . . . 12 . . . 5 . . . . . . . . . . . . . . . . . . Heat Transferred 8748 | 87 518 185 250 296 . 4000 200 1500 . 1157 . . . . . 74 . . . . . . . 37 407 37 . . Parts Sabotaged . | . . . . . . . . . . . . . . . . . . . . . . . . . . . . . Parts Stolen . | . . . . . . . . . . . . . . . . . . . . . . . . . . . . . Parts Stripped . | . . . . . . . . . . . . . . . . . . . . . . . . . . . . . Power Chain Reactions 1 | 1 . . . . . . . . . . . . . . . . . . . . . . . . . . . . Alert | -11 -10 -10 -10 -9 -9 -6 -6 -6 -6 -6 -5 -5 -5 -5 -5 -5 -5 -4 -4 -4 -4 -3 -3 -2 -2 -2 -1 -1 ------- Run | Yrd Mat Min Sub Rec Scr Fac Low Low Zio Dee Pro Fac Was Fac Upp Upp War Pro Fac Was Fac Res Tes Res Qua Frg Acc Com Maximum Alert Level 3 | . . . . . . 2 . . . . . . . 2 . . . . . . . . . 2 2 3 1 1 Low Security (%) 69 | 100 100 100 . 100 . 89 . . . . . 100 100 51 . . . . 100 100 100 100 100 53 . . . 56 Level 1 11 | . . . . . . 8 . . . . . . . 20 . . . . . . . . . 16 30 14 100 43 Level 2 18 | . . . . . . 2 . . . . . . . 27 . . . . . . . . . 29 69 84 . . Level 3 . | . . . . . . . . . . . . . . . . . . . . . . . . . . 1 . . Level 4 . | . . . . . . . . . . . . . . . . . . . . . . . . . . . . . Level 5 . | . . . . . . . . . . . . . . . . . . . . . . . . . . . . . High Security . | . . . . . . . . . . . . . . . . . . . . . . . . . . . . . Max Security . | . . . . . . . . . . . . . . . . . . . . . . . . . . . . . Peak Influence 705 | 10 95 20 . 75 . 411 . . . . . 17 . 652 . . . . 39 10 115 76 151 646 528 705 323 278 Initial 361 | . . . . 75 . . . . . . . 2 . . . . . . 15 10 7 44 32 78 361 294 312 204 Average 153 | 1 26 . . 9 . 76 . . . . . 3 . 232 . . . . 25 10 34 60 88 271 425 491 298 164 Influence Increases 6222 | 15 149 37 170 77 . 855 . 65 . . 20 15 . 824 110 255 272 135 24 . 223 44 229 805 342 1093 129 334 Destroy 0b10 Robot/C 1880 | . 80 20 80 20 . 440 . 20 . . . . . 260 100 220 120 40 . . . . . 160 . 240 . 80 Destroy 0b10 Robot/NC 405 | 15 10 . . 35 . 135 . 5 . . 5 . . 30 . 5 . 55 . . 20 10 5 15 40 10 . 10 Destroy Leader 306 | . 20 . . . . 102 . 10 . . . . . 44 10 . . . . . 2 . 2 42 2 40 . 32 Allied During Kill 373 | . . . . . . . . . . . . . . 128 . 30 92 10 . . . . . 4 . 26 . 83 Successful Hack 326 | . 9 . . 19 . 14 . . . . . 13 . . . . . . 24 . 10 . 38 14 24 62 36 63 Disable Machine 450 | . 15 . . . . 45 . . . . . . . 60 . . . . . . 45 . 15 . 60 150 30 30 Destroy Structure 847 | . . 17 . 3 . 104 . . . . . 2 . 152 . . . . . . 116 4 34 210 81 100 3 21 Partial Spotted 375 | . . . . . . . . . . . . . . 30 . . . . . . 15 30 60 60 90 90 . . Lose Combat Pursuer 1260 | . 15 . 90 . . 15 . 30 . . 15 . . 120 . . 60 30 . . 15 . 75 300 45 375 60 15 Influence Decreases 6222 | 15 149 37 12 235 . 485 370 65 . . 15 20 . 165 365 268 585 188 20 19 148 71 146 303 462 1095 329 655 Entered New Map 2014 | . . . . 83 . . 137 . . . . 3 . . 245 78 391 78 10 19 3 41 26 63 282 229 209 117 Time Decay 2699 | 15 149 37 2 132 . 355 233 65 . . 5 17 . 83 120 170 24 94 10 . 124 30 110 150 170 356 50 198 Search Patrol Dispatched 150 | . . . . . . . . . . . . . . . . . . . . . . . . . . 150 . . Lost Part 621 | . . . 10 20 . 130 . . . . 10 . . . . . . . . . 21 . 10 60 10 190 70 90 Lost Ally 588 | . . . . . . . . . . . . . . 82 . 20 170 16 . . . . . 30 . 20 . 250 Purge Threat 150 | . . . . . . . . . . . . . . . . . . . . . . . . . . 150 . . Squads Dispatched 48 | . 2 . . . . 9 . . . . . 2 . 3 . . . . 1 . 6 . 2 9 2 8 1 3 Investigation 23 | . 2 . . . . 2 . . . . . 2 . 2 . . . . 1 . 3 . 1 3 . 6 1 . Extermination 9 | . . . . . . 3 . . . . . . . . . . . . . . 1 . 1 1 1 1 . 1 Reinforcement 11 | . . . . . . 4 . . . . . . . . . . . . . . 2 . . 1 1 1 . 2 Assault 4 | . . . . . . . . . . . . . . . . . . . . . . . . 4 . . . . Garrison 1 | . . . . . . . . . . . . . . 1 . . . . . . . . . . . . . . Intercept . | . . . . . . . . . . . . . . . . . . . . . . . . . . . . . Searches Triggered 1 | . . . . . . . . . . . . . . . . . . . . . . . . . . 1 . . Construction Impeded 1 | . . . . . . 1 . . . . . . . . . . . . . . . . . . . . . . Haulers Reinforced 1 | . . . . . . 1 . . . . . . . . . . . . . . . . . . . . . . Active Scanning Responses . | . . . . . . . . . . . . . . . . . . . . . . . . . . . . . Cargo Convoy Interrupts . | . . . . . . . . . . . . . . . . . . . . . . . . . . . . . Stealth | -11 -10 -10 -10 -9 -9 -6 -6 -6 -6 -6 -5 -5 -5 -5 -5 -5 -5 -4 -4 -4 -4 -3 -3 -2 -2 -2 -1 -1 --------- Run | Yrd Mat Min Sub Rec Scr Fac Low Low Zio Dee Pro Fac Was Fac Upp Upp War Pro Fac Was Fac Res Tes Res Qua Frg Acc Com Distress Signals 33 | . 2 . . . . 2 . . . . . . . 2 . . 2 15 . . . . 1 2 . 5 2 . Communications Jammed . | . . . . . . . . . . . . . . . . . . . . . . . . . . . . . Distress Signals . | . . . . . . . . . . . . . . . . . . . . . . . . . . . . . Times Spotted 332 | . 9 5 16 1 . 36 1 4 . 12 7 . . 12 4 1 18 3 . 4 11 2 10 37 18 90 13 18 Peak Tracking Total 19 | . 3 4 6 1 . 6 1 1 . 5 4 . . 7 4 1 10 3 . 4 8 1 5 19 10 15 10 8 Tactical Retreats 38 | . 1 . 3 . . 1 . 2 . . 1 . . 4 . . 2 2 . . 1 . 2 6 1 9 2 1 Traps | -11 -10 -10 -10 -9 -9 -6 -6 -6 -6 -6 -5 -5 -5 -5 -5 -5 -5 -4 -4 -4 -4 -3 -3 -2 -2 -2 -1 -1 ------- Run | Yrd Mat Min Sub Rec Scr Fac Low Low Zio Dee Pro Fac Was Fac Upp Upp War Pro Fac Was Fac Res Tes Res Qua Frg Acc Com Traps Triggered 16 | . . . . . . . . 1 . . . 1 . . . . . 2 1 . 2 . . 2 1 4 . 2 Indirectly . | . . . . . . . . . . . . . . . . . . . . . . . . . . . . . Trap Hack Attempts . | . . . . . . . . . . . . . . . . . . . . . . . . . . . . . Triggered . | . . . . . . . . . . . . . . . . . . . . . . . . . . . . . Disarmed . | . . . . . . . . . . . . . . . . . . . . . . . . . . . . . Reprogrammed . | . . . . . . . . . . . . . . . . . . . . . . . . . . . . . Reused 2 | . . . . . . . . 1 . . 1 . . . . . . . . . . . . . . . . . Traps Extracted . | . . . . . . . . . . . . . . . . . . . . . . . . . . . . . Installed 6 | . . . . . . . . 2 . . 4 . . . . . . . . . . . . . . . . . Triggered 2 | . . . . . . . . 1 . . 1 . . . . . . . . . . . . . . . . . Most Traps Carried 2 | . . . 1 1 2 2 2 2 . . 1 . . . . . . . . . . . . . . . . . Machines | -11 -10 -10 -10 -9 -9 -6 -6 -6 -6 -6 -5 -5 -5 -5 -5 -5 -5 -4 -4 -4 -4 -3 -3 -2 -2 -2 -1 -1 ---------- Run | Yrd Mat Min Sub Rec Scr Fac Low Low Zio Dee Pro Fac Was Fac Upp Upp War Pro Fac Was Fac Res Tes Res Qua Frg Acc Com Machines Disabled 40 | . 2 . . . . 3 1 . . 3 . . . 4 . 1 1 3 . . 3 . 1 . 4 10 2 2 Max in Single Turn 7 | . 1 . . . . 1 1 . . 2 . . . . . . 1 1 . . 2 . 1 . 2 7 2 1 Garrison Access 2 | . . . . . . . . . . . . . . . . . . . . . . . . 1 1 . . . Machines Repaired . | . . . . . . . . . . . . . . . . . . . . . . . . . . . . . Machines Dismantled 1 | . . . . . . . . . . . . . . . . . 1 . . . . . . . . . . . Machines Sabotaged . | . . . . . . . . . . . . . . . . . . . . . . . . . . . . . Overloaded Fab Kills . | . . . . . . . . . . . . . . . . . . . . . . . . . . . . . Hacking | -11 -10 -10 -10 -9 -9 -6 -6 -6 -6 -6 -5 -5 -5 -5 -5 -5 -5 -4 -4 -4 -4 -3 -3 -2 -2 -2 -1 -1 --------- Run | Yrd Mat Min Sub Rec Scr Fac Low Low Zio Dee Pro Fac Was Fac Upp Upp War Pro Fac Was Fac Res Tes Res Qua Frg Acc Com Machines Accessed 72 | . 3 . . 3 3 4 . 1 . . . 4 . 5 . 1 3 . 3 . 3 1 6 5 7 14 2 4 Terminals 38 | . 2 . . 2 . 1 . . . . . 2 . 2 . . . . 2 . 1 1 4 3 4 9 2 3 Fabricators 3 | . . . . . . . . . . . . . . 2 . . . . . . . . . . . 1 . . Repair Stations 3 | . . . . . . . . . . . . . . . . . . . . . . . . . 2 1 . . Recycling Units 14 | . 1 . . 1 . 2 . . . . . 2 . . . . . . 1 . 2 . . 1 . 3 . 1 Scanalyzers 3 | . . . . . . 1 . . . . . . . . . . . . . . . . 2 . . . . . Garrison Access 3 | . . . . . . . . . . . . . . 1 . . . . . . . . . 1 1 . . . Total Hacks 169 | . 17 . . 8 9 7 . 1 . . . 8 . 11 . 1 4 . 7 . 5 4 18 8 15 32 5 9 Successful 97 | . 8 . . 4 9 6 . 1 . . . 5 . 1 . 1 4 . 5 . 3 4 12 7 7 13 2 5 Failed 72 | . 9 . . 4 . 1 . . . . . 3 . 10 . . . . 2 . 2 . 6 1 8 19 3 4 Catastrophic 13 | . 1 . . . . . . . . . . 2 . 4 . . . . . . 1 . 2 . . 2 1 . Database Lockouts . | . . . . . . . . . . . . . . . . . . . . . . . . . . . . . Manual 77 | . 7 . . 4 . 4 . . 4 . . 5 . 4 . . . . 7 . 4 3 7 4 2 17 1 4 Terminals 106 | . 11 . . 6 . 2 . . . . . 6 . 4 . . . . 6 . 3 4 13 5 9 25 5 7 Fabricators 6 | . . . . . . . . . . . . . . 5 . . . . . . . . . . . 1 . . Repair Stations 6 | . . . . . . . . . . . . . . . . . . . . . . . . . 4 2 . . Recycling Units 22 | . 6 . . 2 . 2 . . . . . 2 . . . . . . 1 . 2 . . 1 . 4 . 2 Scanalyzers 8 | . . . . . . 3 . . . . . . . . . . . . . . . . 5 . . . . . Garrison Access 6 | . . . . . . . . . . . . . . 2 . . . . . . . . . 2 2 . . . Terminal Hacks 53 | . 3 . . 2 9 . . 1 . . . 2 . . . 1 4 . 2 . 1 2 7 4 4 6 2 3 Record 14 | . . . . . 3 . . . . . . . . . . . 2 . . . . . 2 . 3 2 1 1 Robot Analysis 9 | . . . . . 5 . . . . . . . . . . . . . . . . . . 2 . 1 . 1 Prototype ID Bank 2 | . . . . . . . . . . . . . . . . . . . . . . . 1 . . . . 1 Open Door 5 | . . . . . . . . 1 . . . . . . . 1 2 . . . . . . 1 . . . . Open DSF 1 | . . . . . . . . . . . . . . . . . . . . . . . . 1 . . . . Level Access Points 4 | . . . . . . . . . . . . 1 . . . . . . . . 1 . 1 . . . 1 . Branch Access Points 2 | . . . . . . . . . . . . . . . . . . . 1 . . . . . . 1 . . Emergency Access Points 1 | . 1 . . . . . . . . . . . . . . . . . . . . . . . . . . . Terminal Index 1 | . . . . . . . . . . . . . . . . . . . 1 . . . . . . . . . Recycling Unit Index 4 | . . . . 1 . . . . . . . . . . . . . . . . . 1 1 . . 1 . . Garrison Index 1 | . . . . . . . . . . . . . . . . . . . . . . . 1 . . . . . Alert Level 3 | . 2 . . . . . . . . . . . . . . . . . . . . 1 . . . . . . Unreport Threat 1 | . . . . . . . . . . . . . . . . . . . . . . . . . . 1 . . Locate Traps 1 | . . . . . . . . . . . . . . . . . . . . . . . . . 1 . . . Zone Layout 2 | . . . . 1 . . . . . . . 1 . . . . . . . . . . . . . . . . Proto ID Catalog 1 | . . . . . 1 . . . . . . . . . . . . . . . . . . . . . . . Protovariant Controls 1 | . . . . . . . . . . . . . . . . . . . . . . . 1 . . . . . Fabricator Hacks 1 | . . . . . . . . . . . . . . 1 . . . . . . . . . . . . . . Load Schematic 1 | . . . . . . . . . . . . . . 1 . . . . . . . . . . . . . . Repair Station Hacks 4 | . . . . . . . . . . . . . . . . . . . . . . . . . 2 2 . . Scan Component 2 | . . . . . . . . . . . . . . . . . . . . . . . . . 1 1 . . Repair 2 | . . . . . . . . . . . . . . . . . . . . . . . . . 1 1 . . Recycling Unit Hacks 3 | . 2 . . 1 . . . . . . . . . . . . . . . . . . . . . . . . Report Inventory 1 | . 1 . . . . . . . . . . . . . . . . . . . . . . . . . . . Retrieve Matter 1 | . 1 . . . . . . . . . . . . . . . . . . . . . . . . . . . Retrieve Components 1 | . . . . 1 . . . . . . . . . . . . . . . . . . . . . . . . Scanalyzer 7 | . . . . . . 3 . . . . . . . . . . . . . . . . 4 . . . . . Insert Component 4 | . . . . . . 2 . . . . . . . . . . . . . . . . 2 . . . . . Analyze 3 | . . . . . . 1 . . . . . . . . . . . . . . . . 2 . . . . . Garrison Access Hacks 1 | . . . . . . . . . . . . . . . . . . . . . . . . . 1 . . . Seal Access 1 | . . . . . . . . . . . . . . . . . . . . . . . . . 1 . . . Unauthorized Hacks 25 | . 1 . . 1 . 3 . . . . . 3 . . . . . . 3 . 2 2 1 3 . 5 . 1 Terminals 13 | . 1 . . 1 . 1 . . . . . 1 . . . . . . 2 . . 2 1 1 . 2 . 1 Assimilate 2 | . . . . . . . . . . . . . . . . . . . . . . 1 . 1 . . . . Botnet 10 | . 1 . . 1 . 1 . . . . . 1 . . . . . . 2 . . . 1 . . 2 . 1 Operators 1 | . . . . . . . . . . . . . . . . . . . . . . 1 . . . . . . Fabricators . | . . . . . . . . . . . . . . . . . . . . . . . . . . . . . Repair Stations 11 | . . . . . . 2 . . . . . 2 . . . . . . 1 . 2 . . 1 . 3 . . Recycling Units . | . . . . . . . . . . . . . . . . . . . . . . . . . . . . . Fedlink 9 | . . . . . . 2 . . . . . 2 . . . . . . 1 . 2 . . . . 2 . . Scraphulk 2 | . . . . . . . . . . . . . . . . . . . . . . . . 1 . 1 . . Scanalyzers . | . . . . . . . . . . . . . . . . . . . . . . . . . . . . . Garrison Access 1 | . . . . . . . . . . . . . . . . . . . . . . . . 1 . . . . Reprogram 1 | . . . . . . . . . . . . . . . . . . . . . . . . 1 . . . . Data Cores Recovered 1 | . . . . . . . . . . . . . . 1 . . . . . . . . . . . . . . Used . | . . . . . . . . . . . . . . . . . . . . . . . . . . . . . Hacking Detections 50 | . 3 . . 2 . 2 . . . . . 2 . 5 . . . . 2 . 1 1 6 3 6 11 2 4 Full Trace Events 11 | . 2 . . . . . . . . . . . . 2 . . . . . . 1 . 1 1 . 3 1 . Feedback Events . | . . . . . . . . . . . . . . . . . . . . . . . . . . . . . Feedback Blocked . | . . . . . . . . . . . . . . . . . . . . . . . . . . . . . Robot Schematics Acquired 3 | . . . . . . . . . 3 . . . . . . . . . . . . . . . . . . . Robots Built . | . . . . . . . . . . . . . . . . . . . . . . . . . . . . . Authchips . | . . . . . . . . . . . . . . . . . . . . . . . . . . . . . Time . | . . . . . . . . . . . . . . . . . . . . . . . . . . . . . Total Robot Build Rating . | . . . . . . . . . . . . . . . . . . . . . . . . . . . . . Part Schematics Acquired 17 | . . . . . . 1 . . 14 . . . . . . . . . . . . . 2 . . . . . Parts Built . | . . . . . . . . . . . . . . . . . . . . . . . . . . . . . Authchips . | . . . . . . . . . . . . . . . . . . . . . . . . . . . . . Time . | . . . . . . . . . . . . . . . . . . . . . . . . . . . . . Total Part Build Rating . | . . . . . . . . . . . . . . . . . . . . . . . . . . . . . Parts Repaired 2 | . . . . . . . . . . . . . . . . . . . . . . . . . 1 1 . . Time 54 | . . . . . . . . . . . . . . . . . . . . . . . . . 36 18 . . Parts Recycled . | . . . . . . . . . . . . . . . . . . . . . . . . . . . . . Recycled Matter . | . . . . . . . . . . . . . . . . . . . . . . . . . . . . . Retrieved Matter . | . . . . . . . . . . . . . . . . . . . . . . . . . . . . . Retrieved Components 2 | . . . . 2 . . . . . . . . . . . . . . . . . . . . . . . . Parts Scanalyzed 3 | . . . . . . 1 . . . . . . . . . . . . . . . . 2 . . . . . Part Schematics Acquired 3 | . . . . . . 1 . . . . . . . . . . . . . . . . 2 . . . . . Parts Damaged . | . . . . . . . . . . . . . . . . . . . . . . . . . . . . . Bothacking | -11 -10 -10 -10 -9 -9 -6 -6 -6 -6 -6 -5 -5 -5 -5 -5 -5 -5 -4 -4 -4 -4 -3 -3 -2 -2 -2 -1 -1 ------------ Run | Yrd Mat Min Sub Rec Scr Fac Low Low Zio Dee Pro Fac Was Fac Upp Upp War Pro Fac Was Fac Res Tes Res Qua Frg Acc Com Used RIF Installer . | . . . . . . . . . . . . . . . . . . . . . . . . . . . . . Robots Hacked . | . . . . . . . . . . . . . . . . . . . . . . . . . . . . . Non-combat . | . . . . . . . . . . . . . . . . . . . . . . . . . . . . . Combat . | . . . . . . . . . . . . . . . . . . . . . . . . . . . . . Robot Hacks Applied . | . . . . . . . . . . . . . . . . . . . . . . . . . . . . . Relay Couplers Released 2 | . . . . . . . . . . . . . . . . . . . . . . . . 2 . . . . Machine Destruction 2 | . . . . . . . . . . . . . . . . . . . . . . . . 2 . . . . Fabnet Peak Effective % . | . . . . . . . . . . . . . . . . . . . . . . . . . . . . . Robots Rewired 9 | . . . . . . . . . . . . . . . . 2 5 2 . . . . . . . . . . Allies Hacked 1 | . . . . . . . . . . . . . . . . . . . . . . . . 1 . . . . Hacks Repelled . | . . . . . . . . . . . . . . . . . . . . . . . . . . . . . Allies | -11 -10 -10 -10 -9 -9 -6 -6 -6 -6 -6 -5 -5 -5 -5 -5 -5 -5 -4 -4 -4 -4 -3 -3 -2 -2 -2 -1 -1 -------- Run | Yrd Mat Min Sub Rec Scr Fac Low Low Zio Dee Pro Fac Was Fac Upp Upp War Pro Fac Was Fac Res Tes Res Qua Frg Acc Com Total Allies 48 | . . . . . . . . . . . . . 20 . . 2 5 2 . 1 . 1 . 2 . 1 . 14 Largest Group 20 | . . . . . . . . . . . . . 20 20 7 8 13 2 1 2 . 1 . 1 . 1 . 9 Highest-Rated Group 768 | . . . . . . . . . . . . . 768 768 294 329 593 98 45 91 . 10 . 139 . 139 . 129 Highest-Rated Ally 139 | . . . . . . . . . . . . . 50 50 50 50 64 49 45 46 . 10 . 139 . 139 . 15 Total Orders . | . . . . . . . . . . . . . . . . . . . . . . . . . . . . . Ally Attacks 298 | . . . . . . . . . . . . . . 57 20 18 67 24 . . . . . 9 . 27 . 76 Total Damage 12412 | . . . . . . . . . . . . . . 2300 905 1216 2843 1374 . . . . . 740 . 1670 . 1364 Kills 57 | . . . . . . . . . . . . . . 18 9 10 8 3 . . . . . 1 . 4 . 4 Allies Corrupted 2 | . . . . . . . . . . . . . . . . . 1 . . . . . . 1 . . . . Allies Melted . | . . . . . . . . . . . . . . . . . . . . . . . . . . . . . Intel | -11 -10 -10 -10 -9 -9 -6 -6 -6 -6 -6 -5 -5 -5 -5 -5 -5 -5 -4 -4 -4 -4 -3 -3 -2 -2 -2 -1 -1 ------- Run | Yrd Mat Min Sub Rec Scr Fac Low Low Zio Dee Pro Fac Was Fac Upp Upp War Pro Fac Was Fac Res Tes Res Qua Frg Acc Com Active Infowar (turns) 14593 | . . . 1051 . . 984 650 1686 3024 1895 745 64 122 181 252 349 595 501 21 16 296 60 223 305 348 801 106 318 Optics 13393 | . . . . . . 984 650 1686 3024 1895 745 64 122 181 252 349 595 501 21 16 212 . 218 305 348 801 106 318 Sensors 4920 | . . . . . . . 370 380 . 424 724 60 122 181 252 349 595 501 21 16 296 60 220 295 . . . 54 Terrain 1866 | . . . . . . . . . . . . . . 159 252 349 595 501 10 . . . . . . . . . Structural 38 | . . . . . . . . . . . . . . . . . . . . . . 34 4 . . . . . Seismic 1063 | . . . 1051 . . . . . . . . . . . . . . . . . . . . . . . 12 . ECM 1 | . . . . . . . . . . . . . . . . . . . . . . . . . . . 1 . Robot Analysis Total 9 | . . . . . 5 . . . . . . . . . . . . . . . . . . 2 . 1 . 1 Derelict Logs Recovered 13 | . . 1 1 . 4 . 1 . . . 2 . . . 1 2 . 1 . . . . . . . . . . Drone Launches . | . . . . . . . . . . . . . . . . . . . . . . . . . . . . . Drone Recoveries . | . . . . . . . . . . . . . . . . . . . . . . . . . . . . . Exploration | -11 -10 -10 -10 -9 -9 -6 -6 -6 -6 -6 -5 -5 -5 -5 -5 -5 -5 -4 -4 -4 -4 -3 -3 -2 -2 -2 -1 -1 ------------- Run | Yrd Mat Min Sub Rec Scr Fac Low Low Zio Dee Pro Fac Was Fac Upp Upp War Pro Fac Was Fac Res Tes Res Qua Frg Acc Com Turns Passed 23315 | 118 442 503 3274 789 4060 1110 650 1686 3024 2211 745 64 122 181 252 349 595 501 21 16 296 60 223 305 348 801 106 463 Spaces Moved 17175 | 61 157 141 1252 264 2169 641 372 744 1248 1295 549 231 301 520 351 436 906 659 79 79 614 168 678 594 659 1430 150 427 Core 425 | 5 . . . . . . . . . . . . . . . . . . . . . . . . . . 97 323 Treads 3534 | 56 157 141 699 207 724 . . 106 1248 151 . . . . . . . . . . . . . . . . . 45 Legs 360 | . . . . . . . . . . 24 . . . . . . . . . . . . . . . 335 . 1 Wheels 3764 | . . . 553 57 1445 641 372 638 . . . . . . . . . . . . . . . . . . . 58 Hover 5788 | . . . . . . . . . . 1120 549 231 301 520 351 436 906 659 79 79 529 . . . . 28 . . Flight 3304 | . . . . . . . . . . . . . . . . . . . . . 85 168 678 594 659 1067 53 . Fastest Speed 10 | 50 160 320 131 135 100 109 140 110 240 22 22 20 20 20 20 20 20 18 20 20 10 11 11 12 19 19 40 50 Average Speed 108 | 150 229 320 245 280 183 114 158 207 240 143 22 20 20 20 20 20 20 26 20 20 19 12 12 16 19 38 54 70 Slowest Speed 630 | 160 320 320 320 320 320 140 170 560 240 630 22 20 20 20 20 20 92 94 20 20 100 13 13 24 100 170 70 152 Overloaded Moves 2 | . . . . . . . . . . . . . . . . . . 2 . . . . . . . . . . Propulsion Burnouts . | . . . . . . . . . . . . . . . . . . . . . . . . . . . . . Robots Hopped 22 | . . . . . . . . . . . . . . 2 . . . . . . . 1 5 4 3 7 . . Potential Cave-ins 8 | . . . 5 . . . . . . . . . . . . . . . . . . . . . . 2 . 1 Cave-ins Triggered . | . . . . . . . . . . . . . . . . . . . . . . . . . . . . . Teleports 2 | . . . . . . . . . . . . . . . . . . . . . . . . . 1 1 . . Exploration Rate (%) 47 | 5 32 49 71 55 88 22 56 65 83 72 56 11 95 14 55 69 96 62 3 78 11 8 58 23 52 61 7 17 Regions Visited 28 Branch Regions 17 Pre-discovered Areas 6 | . . . 1 . 1 1 1 . 2 . . . . . . . . . . . . . . . . . . . Known Exits Taken 18 | . . 1 1 . . . 1 1 1 1 1 . . 1 1 1 1 1 . . 1 1 1 1 1 1 . . Unknown Exits Taken 6 | 1 1 . . 1 1 1 . . . . . . . . . . . . . . . . . . . . 1 . Scrap Searched 25 | . . . 2 . 9 . 2 1 5 . 2 . . . 3 1 . . . . . . . . . . . . Spaces Dug 262 | . . . 52 . . 12 4 . . 13 2 1 . 7 . 2 . 13 . . 78 2 17 20 25 14 . . Terrain Destroyed 584 | 5 . 18 107 1 . 124 5 6 . 50 2 1 . 7 . 3 . 13 . . 78 2 17 76 31 30 1 7 Melee 84 | . . . . . . 1 3 . . . 2 1 . 7 . 2 . 9 . . 21 2 17 19 . . . . Projectile 136 | . . 1 2 1 . 30 2 3 . 17 . . . . . 1 . 4 . . 5 . . 1 31 30 1 7 AOE 364 | 5 . 17 105 . . 93 . 3 . 33 . . . . . . . . . . 52 . . 56 . . . . Terrain Rammed 3 | . . . . . . . . . . 1 . . . . . . . . . . . . . . . . . 2 Walls Destroyed . | . . . . . . . . . . . . . . . . . . . . . . . . . . . . . Machines Disabled . | . . . . . . . . . . . . . . . . . . . . . . . . . . . . . Actions | -11 -10 -10 -10 -9 -9 -6 -6 -6 -6 -6 -5 -5 -5 -5 -5 -5 -5 -4 -4 -4 -4 -3 -3 -2 -2 -2 -1 -1 --------- Run | Yrd Mat Min Sub Rec Scr Fac Low Low Zio Dee Pro Fac Was Fac Upp Upp War Pro Fac Was Fac Res Tes Res Qua Frg Acc Com Total 20832 | 79 192 161 1347 288 2267 857 404 876 1282 1566 1168 249 362 580 530 685 1306 914 82 78 744 199 768 735 821 1574 168 550 Wait 2145 | 2 1 . 1 2 . 26 2 38 . 100 592 . 58 41 177 214 323 168 . . 71 19 55 70 97 30 9 49 Move 17105 | 60 156 140 1251 263 2168 640 371 743 1247 1294 548 231 300 515 350 435 905 658 79 78 613 165 667 585 652 1415 149 427 Hop 22 | . . . . . . . . . . . . . . 2 . . . . . . . 1 5 4 3 7 . . Pick Up 232 | 7 8 . 18 3 46 13 4 28 12 28 8 8 2 7 . 4 3 7 . . . 3 1 8 6 3 . 5 Fast Attach 139 | 6 . . 1 2 6 17 3 12 5 19 1 1 . . 1 1 7 1 2 . 2 2 5 6 3 19 4 13 Attach 81 | . 1 . 7 2 1 6 2 1 . 15 . 2 . . . . . . . . 11 2 1 5 3 15 1 6 Detach 45 | . . . 2 1 2 . . 3 . 8 . . . . . . 1 . . . 8 . . 4 1 10 1 4 Swap 68 | . 3 6 6 1 1 7 3 3 2 8 1 . . 2 . . 3 5 1 . 3 . 1 6 3 2 1 . Drop 212 | 1 . . 2 1 43 14 2 23 16 28 9 6 2 3 1 5 9 8 . . 5 3 7 5 3 13 . 3 Fire 498 | 3 23 15 59 13 . 133 8 23 . 65 . . . . . 3 . 3 . . 3 . . 18 49 60 3 17 Melee 171 | . . . . . . 1 9 . . . 5 1 . 10 1 7 . 47 . . 28 4 26 24 . . . 8 Ram 13 | . . . . . . . . . . 1 . . . . . . . . . . . . . . 1 . . 11 Kick . | . . . . . . . . . . . . . . . . . . . . . . . . . . . . . Crush 7 | . . . . . . . . . . . . . . . . . . . . . . . . . . . . 7 Escape Stasis 7 | . . . . . . . . . . . . . . . . . . 7 . . . . . . . . . . Rewire 72 | . . . . . . . . . . . . . . . . 16 46 10 . . . . . . . . . . Trap 6 | . . . . . . . . 2 . . 4 . . . . . . . . . . . . . . . . . Miscellaneous 9 | . . . . . . . . . . . . . . . . . 9 . . . . . . . . . . . Route ------- -11/Scrapyard -10/Materials -10/Mines (discovered 2 exits: [*Mat] / *Sub) -10/Subcaves (discovered 3 exits: [*Mat x2] / *Rec) -9/Recycling -9/Scraptown (discovered 2 exits: *Fac x2) -6/Factory (discovered 3 exits: *Fac x2 / [*Low]) -6/Lower Caves -6/Lower Caves -6/Zion -6/Deep Caves -5/Proximity Caves -5/Factory (discovered 5 exits: *Fac x4 / Upp) -5/Waste -5/Factory -5/Upper Caves -5/Upper Caves -5/Warlord -4/Proximity Caves -4/Factory (discovered 4 exits: Upp x2 / Ext x2) -4/Waste -4/Factory (discovered 5 exits: *Res x4 / *Ext) -3/Research (discovered 4 exits: Res x2 / Arm / *Tes) -3/Testing -2/Research (discovered 2 exits: *Acc / *Qua) -2/Quarantine (discovered 2 exits: *Sec / *Frg) -2/Protoforge -1/Access (discovered 2 exits: Sur / *Com) -1/Command History --------- Turn | Location | Event 9 | -11/Scrapyard | Discovered new exit (range 15) 119 | -11/Scrapyard | Entered Materials 362 | -10/Materials | Build established: Mutant 455 | -10/Materials | Discovered new exit (range 9) 561 | -10/Materials | Entered Mines 653 | -10/Mines | Excavation squad dispatched 653 | -10/Mines | A large section of the Mines collapsed 794 | -10/Mines | Discovered new exit (range 12) 1012 | -10/Mines | Learned Materials interactive machine intel 1034 | -10/Mines | Discovered new exit (range 9) 1064 | -10/Mines | Identified exit to Subcaves 1064 | -10/Mines | Entered Subcaves 1065 | -10/Subcaves | Approached by a straggling Scientist 1749 | -10/Subcaves | Identified exit to Recycling 1960 | -10/Subcaves | Learned location of Zion (-6) 1960 | -10/Subcaves | Met a Zionite searching for "candidates" 3211 | -10/Subcaves | Shifting Twisted Machinery released Flamer 3228 | -10/Subcaves | Shifting Twisted Machinery released Mak. Axe 3412 | -10/Subcaves | Lost 4 parts (1p2n1w) 3467 | -10/Subcaves | Shifting Twisted Machinery released Sub. Monowheel 3682 | -10/Subcaves | Discovered new exit (range 7) 3704 | -10/Subcaves | Discovered new exit (range 15) 3717 | -10/Subcaves | Core integrity fell below 50% 3733 | -10/Subcaves | Disturbed a concealed Subdweller 4119 | -10/Subcaves | Ambushed by Subdweller buried in earth 4329 | -10/Subcaves | Core integrity fell below 20% 4338 | -10/Subcaves | Entered Recycling 5050 | -9/Recycling | Scanned before Scraplab entrance 5095 | -9/Recycling | Entered Scraplab 5121 | -9/Recycling | Discovered new exit (range 2) 5127 | -9/Recycling | Entered Scraptown 5575 | -9/Scraptown | Scanned Subdweller tech in exchange for log data 5582 | -9/Scraptown | Learned location of 1 exit from Factory 5585 | -9/Scraptown | Learned Factory trap positions 5588 | -9/Scraptown | Learned location of Warlord (-5) 5649 | -9/Scraptown | Discovered new exit (range 11) 6485 | -9/Scraptown | Visited UFD Registry 6526 | -9/Scraptown | Registered with UFD as "Microdisc" 6590 | -9/Scraptown | Visited Bundlers 6998 | -9/Scraptown | Visited Supply Room 7120 | -9/Scraptown | Visited Science Guys 7292 | -9/Scraptown | Visited Chapter 10 7356 | -9/Scraptown | Visited DA-N13 Charitable Foundation 7388 | -9/Scraptown | Found DCF Scrap (29 items) 7518 | -9/Scraptown | Visited Analyses Database 7549 | -9/Scraptown | Visited A0-MCA Data Center 7557 | -9/Scraptown | Given a B- rating by A0-MCA 7562 | -9/Scraptown | Found A0-MCA's Component Scanner 7650 | -9/Scraptown | Visited Curators Association 7675 | -9/Scraptown | Visited Modified Component R&D 7824 | -9/Scraptown | Discovered new exit (range 5) 8468 | -9/Scraptown | Visited Awakened 8695 | -9/Scraptown | Guru changed UFD alias to "Electrospawn" 8743 | -9/Scraptown | Visited Shadow of the Wyrm 8765 | -9/Scraptown | Visited CPS Storage 8914 | -9/Scraptown | Found Scrap Suit 8917 | -9/Scraptown | Found Scrap Suit 9106 | -9/Scraptown | Met Optimus 9106 | -9/Scraptown | Accepted into 0bPrime 9187 | -9/Scraptown | Entered Factory 9187 | -6/Factory | Evolved 8 slots: Power x1, Propulsion x3, Utility x4 9188 | -6/Factory | Identified exit to Factory 9189 | -6/Factory | Loaded intel: 102 trap records 9451 | -6/Factory | Discovered exit to Factory (range 19) 9566 | -6/Factory | Build established: Scrapper 10068 | -6/Factory | Destroyed 8 combat bots 10077 | -6/Factory | Lost 3 parts (3n) 10136 | -6/Factory | Found Prototype Launcher 10136 | -6/Factory | Identified Scatter Rocket Array 10226 | -6/Factory | Discovered new exit (range 22) 10241 | -6/Factory | Loaded intel: 8 recycling unit locations 10279 | -6/Factory | Learned location of Protoforge (-2) 10297 | -6/Factory | Entered Lower Caves 10327 | -6/Lower Caves | Lost 3 parts (2n1u) 10412 | -6/Lower Caves | Build established: Scavenger-Mutant 10720 | -6/Lower Caves | Build established: Scavenger-Assassin 10779 | -6/Lower Caves | Attacked by a delusional Derelict stockpiling parts 10892 | -6/Lower Caves | Discovered new exit (range 8) 10901 | -6/Lower Caves | Identified exit to Lower Caves 10947 | -6/Lower Caves | Entered another Lower Caves area 11038 | -6/Lower Caves | Spotted B-75 Beast 11061 | -6/Lower Caves | Build established: Scavenger-Mutant 11106 | -6/Lower Caves | Encountered a Warlord checkpoint 11172 | -6/Lower Caves | Attracted the attention of an 0b10 checkpoint 11408 | -6/Lower Caves | Build established: Scavenger-Skirmisher 11664 | -6/Lower Caves | Destroyed B-75 Beast 11757 | -6/Lower Caves | Build established: Scavenger-Mutant 12385 | -6/Lower Caves | Core integrity fell below 50% 12595 | -6/Lower Caves | Discovered new exit (range 15) 12628 | -6/Lower Caves | Identified exit to Zion 12633 | -6/Lower Caves | Entered Zion 12665 | -6/Zion | Found CR-A16's Pointy Stick 12756 | -6/Zion | Found Prototype Device 12870 | -6/Zion | System corruption cleaned by Quarantine Array 13278 | -6/Zion | Visited the Megawrench Repair Shop 13557 | -6/Zion | Megawrench repaired 10 parts 13666 | -6/Zion | Found Relay Coupler [Programmer] 13672 | -6/Zion | Found Relay Coupler [Programmer] 14244 | -6/Zion | Acquired unknown access codes intercepted by a Zionite 15324 | -6/Zion | Turned away by Imprinter 15612 | -6/Zion | Opened final containment barrier to the Deep Caves 15643 | -6/Zion | Discovered new exit (range 5) 15648 | -6/Zion | Saw the warning signs outside the Deep Caves entrance 15653 | -6/Zion | Identified exit to Deep Caves 15657 | -6/Zion | Entered Deep Caves 16073 | -6/Deep Caves | Attacked by Z-Imprinter 16112 | -6/Deep Caves | Destroyed Z-Imprinter 16140 | -6/Deep Caves | Lost 6 parts (3n1u2w) 16156 | -6/Deep Caves | Found Prototype Protection 16299 | -6/Deep Caves | Z-Facility disabled 16630 | -6/Deep Caves | Found Prototype Device 16807 | -6/Deep Caves | Found Prototype Protection 16807 | -6/Deep Caves | Identified Zio. Weapon Casing (x2) 16817 | -6/Deep Caves | Core integrity fell below 20% 16863 | -6/Deep Caves | Lost 11 parts (3p4n2u2w) 16890 | -6/Deep Caves | Identified Bomb Factory No. 2 17101 | -6/Deep Caves | Identified Zio. Metafield Generator 17318 | -6/Deep Caves | Found Zio. Weapon Casing 17467 | -6/Deep Caves | Build established: Scavenger-Skirmisher 17771 | -6/Deep Caves | Build established: Scavenger-Mutant 17867 | -6/Deep Caves | Discovered new exit (range 7) 17868 | -6/Deep Caves | Identified exit to Proximity Caves 17868 | -6/Deep Caves | Entered Proximity Caves 17871 | -5/Proximity Caves | Learned Factory terminal intel 17877 | -5/Proximity Caves | Learned Factory stockpile data 18175 | -5/Proximity Caves | Build established: Scavenger-Scout 18604 | -5/Proximity Caves | Discovered exit to Factory (range 21) 18609 | -5/Proximity Caves | Spotted B-75 Beast 18613 | -5/Proximity Caves | Attracted the attention of an 0b10 checkpoint 18613 | -5/Proximity Caves | Entered Factory 18613 | -5/Factory | Evolved 2 slots: Propulsion x1, Utility x1 18614 | -5/Factory | Identified exit to Upper Caves 18616 | -5/Factory | Loaded intel: 26 terminal locations 18629 | -5/Factory | Identified exit to Factory 18632 | -5/Factory | Loaded intel: 8 recycling unit locations 18677 | -5/Factory | Sucked down chute 18677 | -5/Factory | Entered Waste 18678 | -5/Waste | Joined by Warlord forces that had cleared the area 18698 | -5/Waste | Found Adv. Force Booster 18716 | -5/Waste | Discovered new exit (range 21) 18798 | -5/Waste | Identified exit to Factory 18799 | -5/Waste | Entered Factory 18799 | -5/Factory | Accompanied by 20 allies 18885 | -5/Factory | Garrison activated, responded to threat 18895 | -5/Factory | Discovered exit to Upper Caves (range 8) 18910 | -5/Factory | Lost 3 allies 18980 | -5/Factory | Entered Upper Caves 18980 | -5/Upper Caves | Accompanied by 7 allies 19006 | -5/Upper Caves | Encountered a Warlord checkpoint 19122 | -5/Upper Caves | Ambushed by wild Derelicts 19150 | -5/Upper Caves | Identified exit to Upper Caves 19232 | -5/Upper Caves | Entered another Upper Caves area 19232 | -5/Upper Caves | Accompanied by 7 allies 19255 | -5/Upper Caves | Identified exit to Warlord 19356 | -5/Upper Caves | Attracted the attention of an 0b10 outpost 19403 | -5/Upper Caves | Encountered a Warlord checkpoint 19405 | -5/Upper Caves | Learned location of 1 exit from Proximity Caves 19581 | -5/Upper Caves | Entered Warlord 19581 | -5/Warlord | Accompanied by 8 allies 19592 | -5/Warlord | Discovered new exit (range 15) 19675 | -5/Warlord | Rebuked by Warlord 19700 | -5/Warlord | Warlord's base attacked by MAIN.C 19722 | -5/Warlord | Found Prototype Device 19722 | -5/Warlord | Identified System Purifier 19736 | -5/Warlord | Found Prototype Hackware 19736 | -5/Warlord | Identified System Mapper 19753 | -5/Warlord | Found Prototype Energy Gun 19753 | -5/Warlord | Identified Vortex Rifle 19756 | -5/Warlord | Found Prototype Energy Cannon 19756 | -5/Warlord | Identified Vortex Driver 19758 | -5/Warlord | Found Vortex Driver 19970 | -5/Warlord | Build established: Commander-Scout 20050 | -5/Warlord | Warlord forces counterattacked 20054 | -5/Warlord | Opened side exit 20090 | -5/Warlord | Spotted Striker 20118 | -5/Warlord | Allies destroyed Striker 20168 | -5/Warlord | Spotted Executioner 20176 | -5/Warlord | Identified exit to Proximity Caves 20176 | -5/Warlord | Entered Proximity Caves 20200 | -4/Proximity Caves | Learned 12 Research zone layouts 20203 | -4/Proximity Caves | Lost 14 allies 20207 | -4/Proximity Caves | Spotted B-86 Titan 20637 | -4/Proximity Caves | Lost 3 allies 20677 | -4/Proximity Caves | Entered Factory 20677 | -4/Factory | Accompanied by 1 ally 20677 | -4/Factory | Evolved 2 slots: Propulsion x2 20683 | -4/Factory | Loaded intel: 8 recycling unit locations 20695 | -4/Factory | Identified exit to Upper Caves 20695 | -4/Factory | Identified exit to Extension 20698 | -4/Factory | Sucked down chute 20698 | -4/Factory | Entered Waste 20699 | -4/Waste | Met a frightened Derelict 20703 | -4/Waste | 1 allies followed down the chute 20704 | -4/Waste | Spotted C-40 Crusher 20708 | -4/Waste | Spotted C-40 Crusher 20709 | -4/Waste | Spotted C-40 Crusher 20709 | -4/Waste | Spotted C-40 Crusher 20710 | -4/Waste | Spotted C-40 Crusher 20710 | -4/Waste | Discovered new exit (range 22) 20712 | -4/Waste | Spotted C-40 Crusher 20714 | -4/Waste | Identified exit to Factory 20714 | -4/Waste | Entered Factory 20726 | -4/Factory | Loaded intel: 8 recycling unit locations 20752 | -4/Factory | Build established: Hacker-Scout 20775 | -4/Factory | Identified exit to Research 20900 | -4/Factory | Discovered exit to Extension (range 21) 20906 | -4/Factory | Assembled infested ambush trap array 21010 | -4/Factory | Entered Research 21010 | -3/Research | Evolved 2 slots: Utility x2 21011 | -3/Research | Identified exit to Research 21011 | -3/Research | Identified exit to Testing 21011 | -3/Research | Identified exit to Armory 21070 | -3/Research | Entered Testing 21109 | -3/Testing | Found Prototype Device 21109 | -3/Testing | Identified Exp. Thermal Shield 21163 | -3/Testing | Found Prototype Energy Gun 21163 | -3/Testing | Identified Warp Gun 21205 | -3/Testing | Spotted Striker 21206 | -3/Testing | Spotted Striker 21293 | -3/Testing | Entered Research 21293 | -2/Research | Evolved 2 slots: Propulsion x1, Utility x1 21300 | -2/Research | Identified exit to DSF 21349 | -2/Research | Discovered new exit (range 21) 21375 | -2/Research | Identified exit to Access 21381 | -2/Research | Spotted B-90 Cyclops 21414 | -2/Research | Scraphulk reinforcements arrived? 21543 | -2/Research | First assault squad dispatched 21596 | -2/Research | Discovered new exit (range 8) 21597 | -2/Research | Identified exit to Quarantine 21598 | -2/Research | Entered Quarantine 21600 | -2/Quarantine | Found Alien Artifact 21600 | -2/Quarantine | Identified Core Reset Matrix 21600 | -2/Quarantine | Used Core Reset Matrix 21604 | -2/Quarantine | Detected hypermatrix surge 21604 | -2/Quarantine | Sensed 15 artifacts in vicinity 21641 | -2/Quarantine | Lost 3 parts (1n1u1w) 21678 | -2/Quarantine | Repaired Imp. Diametric Drive 21831 | -2/Quarantine | Found Dimensional Node Initializer 21837 | -2/Quarantine | Found Hpw. Transdimensional Reconstructor 21838 | -2/Quarantine | Found Hpw. Transdimensional Reconstructor 21838 | -2/Quarantine | Warped through subspace 21916 | -2/Quarantine | Spotted Fortress 21943 | -2/Quarantine | Discovered new exit (range 6) 21943 | -2/Quarantine | Discovered new exit (range 6) 21943 | -2/Quarantine | Identified exit to Protoforge 21944 | -2/Quarantine | Identified exit to Section 7 21946 | -2/Quarantine | Entered Protoforge 21947 | -2/Protoforge | Sensed 2 artifacts in vicinity 21953 | -2/Protoforge | Superfortress began startup sequence 21968 | -2/Protoforge | Repaired Antigrav System 21975 | -2/Protoforge | Build established: Hacker-Sprinter 21982 | -2/Protoforge | Spotted Hotshot 21991 | -2/Protoforge | Spotted Hotshot 21997 | -2/Protoforge | Discovered exit to Access (range 22) 22050 | -2/Protoforge | Spotted B-90 Cyclops 22090 | -2/Protoforge | Spotted EXE-6 22090 | -2/Protoforge | Spotted EXE-6 22112 | -2/Protoforge | Spotted Hotshot 22115 | -2/Protoforge | Spotted Hotshot 22134 | -2/Protoforge | Spotted Decapitator 22134 | -2/Protoforge | Spotted Decapitator 22138 | -2/Protoforge | Initialized slip node 22150 | -2/Protoforge | Spotted EXE-6 22155 | -2/Protoforge | Lost 5 parts (1p2n2u) 22174 | -2/Protoforge | Spotted EXE-6 22196 | -2/Protoforge | Search patrols dispatched 22210 | -2/Protoforge | UFD initiated attack on Protoforge 22210 | -2/Protoforge | Loaded intel: 3 recycling unit locations 22224 | -2/Protoforge | Scraphulk reinforcements arrived? 22246 | -2/Protoforge | Optimus greeted in Protoforge 22259 | -2/Protoforge | Found Cep. XC Strikerail 22266 | -2/Protoforge | Found Exp. Core Analyzer 22284 | -2/Protoforge | Lost 7 allies 22291 | -2/Protoforge | Found Scrap Suit 22373 | -2/Protoforge | Found Cep. XC Strikerail 22376 | -2/Protoforge | Found Cep. XC Strikerail 22424 | -2/Protoforge | Spotted Striker 22425 | -2/Protoforge | Spotted Striker 22427 | -2/Protoforge | Destroyed Striker 22435 | -2/Protoforge | Destroyed Striker 22478 | -2/Protoforge | Spotted AP7-3 22478 | -2/Protoforge | Spotted AP7-3 22492 | -2/Protoforge | Destroyed AP7-3 22496 | -2/Protoforge | Spotted Striker 22497 | -2/Protoforge | Spotted Striker 22507 | -2/Protoforge | Destroyed Striker 22516 | -2/Protoforge | Destroyed Striker 22524 | -2/Protoforge | Build established: Scavenger-Mutant 22539 | -2/Protoforge | Found 0bPrime Scrap Suit 22544 | -2/Protoforge | Lost 3 allies 22588 | -2/Protoforge | Spotted Striker 22588 | -2/Protoforge | Spotted Striker 22611 | -2/Protoforge | Spotted Executioner 22613 | -2/Protoforge | Destroyed Striker 22631 | -2/Protoforge | Spotted Executioner 22675 | -2/Protoforge | Lost 14 allies 22692 | -2/Protoforge | System corruption reached 10% 22702 | -2/Protoforge | Spotted Overlord 22702 | -2/Protoforge | Spotted Striker 22702 | -2/Protoforge | Spotted Executioner 22703 | -2/Protoforge | Warped through subspace 22703 | -2/Protoforge | Spotted Executioner 22703 | -2/Protoforge | Spotted Striker 22720 | -2/Protoforge | Core integrity fell below 50% 22734 | -2/Protoforge | Lost 11 parts (1p6n3u1w) 22747 | -2/Protoforge | Entered Access 22747 | -1/Access | Evolved 2 slots: Utility x2 22766 | -1/Access | Identified exit to Surface 22840 | -1/Access | Lost 5 parts (1n4u) 22849 | -1/Access | Spotted B-99 Colossus 22849 | -1/Access | Spotted B-99 Colossus 22852 | -1/Access | Discovered new exit (range 3) 22853 | -1/Access | Entered Command 22880 | -1/Command | Lost 3 parts (3n) 22970 | -1/Command | Build established: Hacker-Mutant 23049 | -1/Command | Lost 4 parts (2n1u1w) 23116 | -1/Command | Spotted B-99 Colossus 23138 | -1/Command | Core integrity fell below 50% 23227 | -1/Command | Emitted hypermatrix ping 23232 | -1/Command | Assembled emerged from beneath the floor 23242 | -1/Command | Assembled emerged from beneath the floor 23248 | -1/Command | System corruption reached 10% 23278 | -1/Command | Core integrity fell below 20% 23297 | -1/Command | Lost 14 allies 23316 | -1/Command | Destroyed by C-57 Dissector with Dual-blade Saw Last Messages --------------- 23303_ Acquired Adv. VSS Leg. 23305_ Acquired Unknown Device. 23305_ Identified Adv. Particle Charger. 23308_ Slammed into P-80 Master. 23308_ P-80 Master knocked back. 23311_ P-80 Master destroyed. 23311_ Penetrated by Slug. 23311_ Slug penetrates Wall. 23311_ Knocked back. 23311_ Broken Adv. Terrain Scan Processor destroyed. 23311_ System corrupted by crushing effect (+2). 23311_ Knocked back. 23312_ Adv. Heavy Treads destroyed. 23312_ Broken Adv. Signal Interpreter destroyed. 23312_ System corrupted by crushing effect (+5). 23312_ System corrupted by crushing effect (+1). 23312_ Knocked back. 23312_ P-80 Master knocked back. 23316_ R1J&